bitfinex/quotes_SOLUSD_20250206
["timestamp","ask_amount","ask_price","bid_price","bid_amount"]
[1738856870513,37.80265571,192.14,192.07,0.78052538]
[1738856870843,37.80265571,192.12,192.06,6.1149]
[1738856871127,37.80265571,192.09,192.02,43.01035571]
[1738856871296,37.80265571,192.09,192.01,43.79156026]
[1738856871497,5.2037,192.17,192.07,0.12549]
[1738856871698,5.2029,192.2,192.09,13.41184853]
[1738856871899,0.11351394,192.08,192.04,21.0]
[1738856872129,0.11351394,192.08,192.04,20.0]
[1738856872496,0.11351394,192.08,192.05,13.91380853]
[1738856872713,0.11351394,192.08,192.05,13.78831853]
[1738856873119,37.80265571,192.07,192.01,5.208]
[1738856873324,37.80265571,192.04,191.99,5.2083]
[1738856873624,37.80265571,192.01,191.95,5.2096]
[1738856873801,19.33501394,192.08,191.91,11.5448]
[1738856874001,1.0,192.07,191.91,6.3343]
[1738856874205,37.80265571,191.95,191.87,0.78134612]
[1738856874516,37.80265571,191.95,191.85,0.78149134]
[1738856874699,37.80265571,191.95,191.82,6.3343]
[1738856874899,37.80265571,191.95,191.85,37.80265571]
[1738856875207,37.80265571,192.0,191.85,0.78157828]
[1738856875404,37.80265571,191.91,191.86,5.46298]
[1738856875608,37.80265571,191.95,191.89,0.25098]
[1738856875809,37.80265571,191.95,191.9,0.12549]
[1738856876009,37.80265571,191.96,191.92,0.12549]
[1738856876209,37.80265571,191.99,191.95,0.25098]
[1738856876414,5.2072,192.04,191.95,0.25098]
[1738856876613,5.2068,192.06,191.98,0.12549]
[1738856876813,37.80265571,192.04,191.98,13.53733853]
[1738856877025,37.80265571,192.03,191.95,37.80265571]
[1738856877239,37.80265571,192.0,191.93,37.80265571]
[1738856877410,20.0,192.04,191.89,38.58396047]
[1738856877611,18.2224,192.07,191.92,13.91380853]
[1738856877931,5.2064,192.07,191.94,13.41184853]
[1738856878133,5.2064,192.07,191.92,0.78109547]
[1738856878441,19.2224,192.07,191.91,0.78122721]
[1738856878620,37.80265571,191.96,191.9,13.41184853]
[1738856878816,37.80265571,191.94,191.9,13.41184853]
[1738856879128,37.80265571,191.91,191.84,0.78146514]
[1738856879337,37.80265571,191.88,191.82,7.1158888]
[1738856879705,37.80265571,191.89,191.83,13.41184853]
[1738856880229,2.0,191.98,191.83,13.41184853]
[1738856880410,37.80265571,191.86,191.79,0.78164003]
[1738856880610,19.2309,191.98,191.76,0.78181501]
[1738856880611,37.80265571,191.82,191.76,0.78181501]
[1738856880820,37.80265571,191.81,191.76,5.2148]
[1738856881002,37.80265571,191.82,191.77,0.12549]
[1738856881201,37.80265571,191.82,191.76,5.2148]
[1738856881202,37.80265571,191.81,191.75,6.5015]
[1738856881427,37.80265571,191.81,191.75,11.7166]
[1738856881622,37.80265571,191.81,191.76,13.41184853]
[1738856881830,5.2133,191.82,191.73,43.80013339]
[1738856881831,37.80265571,191.8,191.73,43.80013339]
[1738856882031,37.80265571,191.82,191.74,13.91380853]
[1738856882237,38.80265571,191.88,191.82,0.12549]
[1738856882610,1.0,191.88,191.84,0.12549]
[1738856882932,1.0,191.88,191.86,0.12549]
[1738856883138,1.0,191.88,191.87,51.46548424]
[1738856883443,50.82405571,192.0,191.91,0.12549]
[1738856883444,37.80265571,192.0,191.91,0.12549]
[1738856883607,29.74363601,192.09,191.94,13.41184853]
[1738856883608,37.80265571,191.99,191.94,13.41184853]
[1738856883810,5.2078,192.02,191.9,38.83493698]
[1738856884008,19.2272,192.02,191.86,6.4921]
[1738856884224,20.0,191.99,191.85,0.78152875]
[1738856884414,20.0,191.99,191.84,13.91380853]
[1738856884615,20.0,191.99,191.84,0.25098]
[1738856884822,20.0,191.99,191.8,5.2136]
[1738856884823,2.0,191.98,191.8,5.2136]
[1738856885028,2.0,191.95,191.78,18.043]
[1738856885228,37.80265571,191.87,191.79,37.80265571]
[1738856885534,37.80265571,191.91,191.86,0.12549]
[1738856885738,5.2088,191.98,191.88,13.53733853]
[1738856885739,37.80265571,191.94,191.88,13.53733853]
[1738856886044,18.2271,192.02,191.86,0.78145608]
[1738856886255,1.0,192.0,191.82,5.99470936]
[1738856886418,20.0,191.99,191.82,5.99470936]
[1738856886743,20.0,191.99,191.83,13.91380853]
[1738856886911,37.80265571,191.89,191.82,5.9947672]
[1738856887114,37.80265571,191.87,191.8,38.58431632]
[1738856887319,37.80265571,191.83,191.78,6.2689]
[1738856887511,37.80265571,191.82,191.78,6.2689]
[1738856887713,37.80265571,191.79,191.73,5.2456]
[1738856887943,37.80265571,191.8,191.73,43.04825571]
[1738856888142,37.80265571,191.81,191.74,38.58470143]
[1738856888342,37.80265571,191.82,191.75,0.25098]
[1738856888560,37.80265571,191.83,191.78,13.53733853]
[1738856888722,18.2395,191.89,191.73,0.03]
[1738856888723,1.0,191.88,191.73,0.03]
[1738856889054,20.0,191.86,191.73,0.03]
[1738856889435,18.2434,191.85,191.73,0.03]
[1738856889749,20.0,191.82,191.73,0.03]
[1738856889968,37.80265571,191.74,191.73,0.03]
[1738856891421,37.80265571,191.76,191.73,0.03]
[1738856891622,5.2139,191.8,191.73,0.03]
[1738856891845,37.91144377,191.74,191.73,0.03]
[1738856892038,0.10878806,191.74,191.73,0.03]
[1738856892247,0.10878806,191.74,191.73,13.56733853]
[1738856892631,0.10878806,191.74,191.73,0.03]
[1738856893032,37.91144377,191.74,191.73,0.03]
[1738856893459,0.10878806,191.74,191.73,0.03]
[1738856893638,0.10878806,191.74,191.68,51.12097424]
[1738856893844,0.10878806,191.74,191.67,0.81232539]
[1738856893845,37.80265571,191.72,191.67,0.03]
[1738856894147,0.10878806,191.74,191.67,0.03]
[1738856894148,5.32418806,191.74,191.67,0.03]
[1738856894454,18.36258806,191.74,191.67,0.03]
[1738856894842,5.32418806,191.74,191.67,0.03]
[1738856895045,5.32418806,191.74,191.73,0.03]
[1738856895369,43.12684377,191.74,191.73,0.03]
[1738856895937,37.80265571,191.68,191.67,0.03]
[1738856896266,37.80265571,191.72,191.67,0.03]
[1738856896630,6.32418806,191.74,191.67,0.03]
[1738856896836,18.36258806,191.74,191.67,0.03]
[1738856897239,37.80265571,191.68,191.67,0.03]
[1738856897477,37.80265571,191.69,191.67,0.03]
[1738856897642,37.80265571,191.7,191.67,0.03]
[1738856897835,37.80265571,191.68,191.67,0.03]
[1738856898031,37.80265571,191.73,191.67,0.03]
[1738856898262,5.32428806,191.74,191.67,0.03]
[1738856898460,37.80265571,191.71,191.67,0.03]
[1738856898765,5.32428806,191.74,191.67,0.03]
[1738856898766,37.80265571,191.72,191.67,0.03]
[1738856898972,0.10878806,191.74,191.67,37.83265571]
[1738856899267,37.91144377,191.74,191.67,0.03]
[1738856899776,0.10878806,191.74,191.68,13.41184853]
[1738856900058,0.10878806,191.74,191.71,13.41184853]
[1738856900262,37.91144377,191.74,191.67,0.03]
[1738856900471,37.91144377,191.74,191.67,37.83265571]
[1738856900680,0.10878806,191.74,191.71,0.25098]
[1738856900880,0.10878806,191.74,191.67,0.03]
[1738856901182,5.32438806,191.74,191.67,0.03]
[1738856901689,18.36278806,191.74,191.67,0.03]
[1738856902178,0.10878806,191.74,191.67,37.83265571]
[1738856902383,0.10878806,191.74,191.68,13.41184853]
[1738856902553,0.10878806,191.74,191.7,51.21450424]
[1738856902753,0.10878806,191.74,191.7,13.41184853]
[1738856903154,37.91144377,191.74,191.67,37.83265571]
[1738856903374,37.91144377,191.74,191.67,0.03]
[1738856903581,37.80265571,191.73,191.67,18.91012853]
[1738856903744,37.80265571,191.73,191.67,0.03]
[1738856904072,37.80265571,191.72,191.67,0.03]
[1738856904251,37.80265571,191.73,191.67,13.44184853]
[1738856904655,0.10878806,191.74,191.67,51.24450424]
[1738856904857,0.10878806,191.74,191.69,37.80265571]
[1738856905059,37.80265571,191.72,191.67,0.03]
[1738856905580,37.80265571,191.71,191.67,0.03]
[1738856905751,37.80265571,191.68,191.67,0.03]
[1738856906247,37.80265571,191.69,191.67,0.03]
[1738856906461,37.80265571,191.72,191.67,0.03]
[1738856906679,5.32428806,191.74,191.67,0.03]
[1738856906680,37.80265571,191.69,191.67,0.03]
[1738856906850,37.80265571,191.68,191.67,0.03]
[1738856907657,43.01965571,191.68,191.67,0.03]
[1738856908093,44.32395832,191.68,191.58,123.41708428]
[1738856908255,37.80265571,191.64,191.58,123.41708428]
[1738856908572,1.0,191.61,191.58,123.41708428]
[1738856908780,20.0,191.59,191.58,113.72208428]
[1738856909171,6.449,191.62,191.58,113.72208428]
[1738856909679,37.80265571,191.59,191.58,113.72208428]
[1738856911866,0.09476388,191.59,191.58,113.72208428]
[1738856912077,0.09476388,191.59,191.58,151.52473999]
[1738856912271,0.09476388,191.59,191.58,165.43854852]
[1738856912789,0.09476388,191.59,191.58,170.53275852]
[1738856912964,0.09476388,191.59,191.58,113.72208428]
[1738856914062,0.09476388,191.59,191.58,118.94178428]
[1738856914269,0.09476388,191.59,191.58,132.60461281]
[1738856914480,0.09476388,191.59,191.58,113.72208428]
[1738856915059,0.09476388,191.59,191.58,132.47912281]
[1738856915265,0.09476388,191.59,191.58,113.72208428]
[1738856915683,0.09476388,191.59,191.58,170.40726852]
[1738856915885,0.09476388,191.59,191.58,170.65824852]
[1738856916067,0.09476388,191.59,191.58,151.52473999]
[1738856916276,0.09476388,191.59,191.58,118.94178428]
[1738856916786,0.09476388,191.59,191.58,156.74443999]
[1738856916985,0.09476388,191.59,191.58,177.17464852]
[1738856916986,6.388e-05,191.59,191.58,177.17464852]
[1738856917485,3.72e-05,191.61,191.59,13.91380853]
[1738856917666,3.72e-05,191.61,191.6,95.52073088]
[1738856917865,1.212e-05,191.62,191.61,13.91380853]
[1738856918196,1.022e-05,191.64,191.63,14.91380853]
[1738856918495,9.428e-05,191.67,191.65,13.91380853]
[1738856918680,9.428e-05,191.67,191.66,52.49863185]
[1738856918891,2.505e-05,191.68,191.67,51.71646424]
[1738856919091,2.505e-05,191.68,191.67,51.46548424]
[1738856919282,2.505e-05,191.68,191.66,37.80265571]
[1738856919482,2.505e-05,191.68,191.65,0.25098]
[1738856919665,2.505e-05,191.68,191.66,37.80265571]
[1738856919865,2.505e-05,191.68,191.66,43.02015571]
[1738856920201,2.505e-05,191.68,191.65,5.2178]
[1738856920970,2.505e-05,191.68,191.64,13.53733853]
[1738856921175,2.505e-05,191.68,191.64,18.75543853]
[1738856922404,2.505e-05,191.68,191.67,37.80265571]
[1738856922562,2.505e-05,191.68,191.67,51.46548424]
[1738856922764,2.505e-05,191.68,191.65,0.78238317]
[1738856922765,2.505e-05,191.68,191.65,37.80265571]
[1738856922969,2.505e-05,191.68,191.64,5.2181]
[1738856923376,2.505e-05,191.68,191.65,1.03346112]
[1738856923684,2.505e-05,191.68,191.66,13.41184853]
[1738856924091,2.505e-05,191.68,191.64,37.80265571]
[1738856924303,2.505e-05,191.68,191.62,37.80265571]
[1738856924506,2.505e-05,191.68,191.64,37.80265571]
[1738856924877,2.505e-05,191.68,191.64,13.53733853]
[1738856925090,2.505e-05,191.68,191.67,37.80265571]
[1738856925496,2.505e-05,191.68,191.66,37.92814571]
[1738856925816,2.505e-05,191.68,191.62,0.78235103]
[1738856925817,2.505e-05,191.68,191.61,5.2189]
[1738856926294,2.505e-05,191.68,191.59,13.53733853]
[1738856926295,37.80265571,191.65,191.6,5.2192]
[1738856926482,37.80265571,191.66,191.6,5.2192]
[1738856926678,37.80265571,191.64,191.58,118.94158428]
[1738856926913,37.80265571,191.66,191.59,37.80265571]
[1738856927299,37.80268076,191.68,191.61,37.80265571]
[1738856927708,37.80265571,191.65,191.58,156.74423999]
[1738856928002,37.80265571,191.66,191.59,37.80265571]
[1738856928312,37.80265571,191.65,191.58,156.74423999]
[1738856928617,37.80265571,191.64,191.58,118.94158428]
[1738856929799,43.02055571,191.65,191.58,156.74423999]
[1738856929987,37.80265571,191.65,191.58,156.74423999]
[1738856930612,37.80265571,191.64,191.58,118.94158428]
[1738856930993,43.02045571,191.65,191.58,156.74423999]
[1738856931203,5.2178,191.65,191.58,156.74423999]
[1738856931498,37.80265571,191.64,191.58,118.94158428]
[1738856931898,0.104212,191.59,191.58,118.94158428]
[1738856932700,0.104212,191.59,191.58,156.74423999]
[1738856933296,0.104212,191.59,191.58,118.94158428]
[1738856933505,0.104212,191.59,191.58,156.74443999]
[1738856934516,0.104212,191.59,191.58,170.40726852]
[1738856934828,1.2e-05,191.59,191.58,170.65824852]
[1738856935026,0.10105791,191.62,191.61,20.50196]
[1738856935027,4.812e-05,191.62,191.61,20.50196]
[1738856935315,4.812e-05,191.62,191.61,51.33999424]
[1738856935512,4.812e-05,191.62,191.61,52.12245193]
[1738856935894,4.812e-05,191.62,191.61,51.33999424]
[1738856936099,4.812e-05,191.62,191.6,37.80265571]
[1738856936318,4.812e-05,191.62,191.61,38.58543273]
[1738856936522,4.812e-05,191.62,191.61,52.24826126]
[1738856937027,4.812e-05,191.62,191.61,57.59265126]
[1738856937535,6.904e-05,191.64,191.63,14.91380853]
[1738856937703,1.076e-05,191.68,191.67,1.50196]
[1738856938026,0.063,191.79,191.73,0.12549]
[1738856938249,37.80265571,191.78,191.68,0.78205645]
[1738856938412,0.063,191.79,191.66,6.2883]
[1738856938413,37.80265571,191.76,191.66,6.2883]
[1738856938612,0.063,191.79,191.66,37.80265571]
[1738856938613,37.86565571,191.74,191.66,37.80265571]
[1738856938805,37.86565571,191.74,191.62,0.78227592]
[1738856938806,0.063,191.74,191.68,37.80265571]
[1738856939043,0.063,191.74,191.66,18.75463853]
[1738856939228,0.063,191.74,191.61,1.0]
[1738856939229,37.80265571,191.72,191.65,37.80265571]
[1738856939419,37.80265571,191.72,191.64,37.80265571]
[1738856939830,37.80265571,191.72,191.65,37.80265571]
[1738856940035,37.80265571,191.73,191.66,37.80265571]
[1738856940230,37.86565571,191.74,191.66,37.80265571]
[1738856940428,0.063,191.74,191.7,37.80265571]
[1738856940622,0.063,191.74,191.68,37.80265571]
[1738856940825,37.86565571,191.74,191.67,37.80265571]
[1738856941040,37.86565571,191.74,191.66,37.80265571]
[1738856941349,37.86565571,191.74,191.67,37.80265571]
[1738856941547,37.80265571,191.73,191.66,37.80265571]
[1738856941877,0.063,191.74,191.69,37.80265571]
[1738856942046,0.063,191.74,191.71,37.80265571]
[1738856942248,0.063,191.74,191.66,0.12549]
[1738856942420,0.063,191.74,191.61,5.2189]
[1738856942837,20.0,191.73,191.59,5.2192]
[1738856943034,20.0,191.73,191.6,13.53733853]
[1738856943245,1.0,191.7,191.58,113.72208428]
[1738856943449,37.80265571,191.62,191.58,113.72208428]
[1738856943744,1.0,191.69,191.58,113.75208428]
[1738856943745,37.80265571,191.63,191.58,113.75208428]
[1738856944043,37.80265571,191.64,191.58,113.75208428]
[1738856944242,37.80265571,191.68,191.61,37.80265571]
[1738856944447,5.2162,191.71,191.62,0.12549]
[1738856944619,5.2158,191.73,191.65,37.80265571]
[1738856944818,0.063,191.74,191.65,0.12549]
[1738856945044,0.063,191.74,191.7,37.80265571]
[1738856945249,0.063,191.74,191.73,51.33999424]
[1738856945552,0.063,191.74,191.73,37.80265571]
[1738856945769,0.063,191.74,191.64,0.78221349]
[1738856945948,37.80265571,191.7,191.63,37.80265571]
[1738856946148,5.2786,191.74,191.61,5.2187]
[1738856946349,0.063,191.74,191.63,5.2183]
[1738856946555,0.063,191.74,191.64,13.66282853]
[1738856946765,0.063,191.74,191.62,5.2185]
[1738856946960,0.063,191.74,191.64,0.25098]
[1738856947278,37.80265571,191.71,191.63,37.80265571]
[1738856947640,37.80265571,191.73,191.66,13.66282853]
[1738856947846,0.063,191.74,191.7,37.80265571]
[1738856948053,0.063,191.74,191.73,13.53733853]
[1738856948549,0.063,191.74,191.72,37.80265571]
[1738856948757,0.063,191.74,191.72,43.01855571]
[1738856949268,0.063,191.74,191.7,43.01885571]
[1738856949446,0.063,191.74,191.71,13.53733853]
[1738856949976,0.063,191.74,191.73,13.91380853]
[1738856950278,0.0001,191.74,191.73,14.69579407]
[1738856950566,0.0001,191.74,191.73,21.91139407]
[1738856950977,0.063,191.79,191.77,13.91380853]
[1738856951149,0.0001,191.79,191.78,52.37269212]
[1738856951351,0.0001,191.79,191.78,52.49818212]
[1738856951673,0.0001,191.79,191.78,91.30083783]
[1738856951864,0.0946753,191.79,191.78,52.49818212]
[1738856952172,0.0946753,191.79,191.78,13.78831853]
[1738856952379,0.0946753,191.79,191.71,0.78185161]
[1738856952584,18.3437753,191.79,191.64,11.8121]
[1738856952744,5.3087753,191.79,191.65,0.78241579]
[1738856953150,5.3087753,191.79,191.66,13.66282853]
[1738856953463,37.80265571,191.77,191.7,13.53733853]
[1738856953658,0.0946753,191.79,191.71,38.05363571]
[1738856953979,0.0946753,191.79,191.73,13.53733853]
[1738856954186,0.0946753,191.79,191.72,37.80265571]
[1738856954482,37.80265571,191.77,191.69,37.80265571]
[1738856954783,37.80265571,191.73,191.66,37.80265571]
[1738856955078,37.80265571,191.75,191.68,13.66282853]
[1738856955541,0.0946753,191.79,191.7,0.12549]
[1738856955742,37.89733101,191.79,191.72,13.53733853]
[1738856955973,37.89733101,191.79,191.76,13.66282853]
[1738856955974,0.0946753,191.79,191.76,13.66282853]
[1738856956182,0.0946753,191.79,191.78,13.66282853]
[1738856956381,0.0946753,191.79,191.78,14.4446613]
[1738856956698,37.89733101,191.79,191.71,0.78193796]
[1738856956846,0.0946753,191.79,191.72,51.71646424]
[1738856957046,0.0946753,191.79,191.78,51.46548424]
[1738856957270,0.0946753,191.79,191.78,51.59097424]
[1738856957471,0.0946753,191.79,191.78,52.49823367]
[1738856957656,7.53e-05,191.79,191.78,58.65823367]
[1738856957962,2.373e-05,191.8,191.79,13.91380853]
[1738856958279,7.826e-05,191.82,191.81,33.91380853]
[1738856958477,0.063,191.95,191.82,26.43480853]
[1738856958778,3.428e-05,191.88,191.85,1.0]
[1738856959074,3.428e-05,191.88,191.87,51.71646424]
[1738856959270,3.428e-05,191.88,191.87,13.66282853]
[1738856959881,3.428e-05,191.88,191.87,13.91380853]
[1738856960047,0.063,191.95,191.87,53.49791021]
[1738856960256,0.063,191.95,191.93,51.71646424]
[1738856960582,0.063,191.95,191.93,57.70781229]
[1738856961281,0.063,191.95,191.92,6.12]
[1738856961466,37.86565571,191.94,191.92,6.12]
[1738856961668,0.063,191.94,191.93,0.25098]
[1738856961878,0.063,191.94,191.93,1.37647]
[1738856962089,0.063,191.95,191.94,14.91380853]
[1738856962280,0.063,191.99,191.98,13.78831853]
[1738856962489,0.063,191.99,191.98,14.6947317]
[1738856962654,0.063,191.99,191.98,57.70618741]
[1738856963666,5.2049,192.13,192.01,1.12549]
[1738856963879,5.2045,192.15,192.1,37.80265571]
[1738856964062,43.00555571,192.2,192.12,37.80265571]
[1738856964267,43.00555571,192.2,192.13,37.80265571]
[1738856964462,43.00555571,192.2,192.12,37.80265571]
[1738856964779,43.00555571,192.2,192.11,0.12549]
[1738856964780,1.0,192.19,192.02,0.78049395]
[1738856964988,1.0,192.18,192.04,37.80265571]
[1738856965172,37.80265571,192.1,192.03,37.80265571]
[1738856965509,82.02725571,192.2,192.05,0.12549]
[1738856965704,5.2029,192.2,192.09,0.12549]
[1738856966003,5.2029,192.2,192.11,0.25098]
[1738856966164,5.2653,192.23,192.12,0.78053419]
[1738856966364,0.063,192.23,192.14,13.91380853]
[1738856966561,0.063,192.23,192.21,37.80265571]
[1738856966790,0.063,192.23,192.22,37.80265571]
[1738856967198,0.063,192.23,192.21,0.12549]
[1738856967568,0.063,192.23,192.22,38.95926358]
[1738856967794,0.063,192.28,192.26,0.12549]
[1738856968095,0.063,192.28,192.24,37.80265571]
[1738856968270,0.063,192.28,192.22,37.80265571]
[1738856968477,0.063,192.28,192.2,5.2029]
[1738856968679,37.80265571,192.25,192.18,37.80265571]
[1738856968883,37.86565571,192.28,192.21,37.80265571]
[1738856969104,0.063,192.28,192.21,0.37647]
[1738856969391,0.063,192.28,192.24,0.12549]
[1738856969691,0.063,192.28,192.23,37.80265571]
[1738856969895,0.063,192.28,192.23,38.58274727]
[1738856970097,0.063,192.28,192.22,37.80265571]
[1738856970268,0.063,192.28,192.22,0.12549]
[1738856970470,5.2018,192.24,192.17,37.80265571]
[1738856970685,5.201,192.27,192.11,0.78031248]
[1738856970880,1.0,192.26,192.11,0.78031248]
[1738856971098,18.2035,192.27,192.11,5.98551248]
[1738856971306,18.2035,192.27,192.12,13.78831853]
[1738856971473,5.201,192.27,192.14,13.91380853]
[1738856971669,5.201,192.27,192.16,0.50196]
[1738856971910,0.11167153,192.16,192.14,37.80265571]
[1738856972206,0.11167153,192.16,192.15,52.49689142]
[1738856972507,0.10018978,192.17,192.16,13.91380853]
[1738856972707,0.10018978,192.17,192.16,0.37647]
[1738856972872,0.10018978,192.17,192.16,0.12549]
[1738856973072,0.10018978,192.17,192.1,0.78026085]
[1738856973382,37.80265571,192.15,192.07,37.80265571]
[1738856973598,37.80265571,192.13,192.05,37.80265571]
[1738856973797,37.80265571,192.16,192.09,37.80265571]
[1738856973973,0.10018978,192.17,192.15,0.12549]
[1738856974178,0.10018978,192.17,192.16,34.69414289]
[1738856974715,0.10018978,192.17,192.16,39.89804289]
[1738856974876,0.09728646,192.2,192.19,0.50196]
[1738856975073,5.527e-05,192.21,192.2,13.91380853]
[1738856975401,5.527e-05,192.21,192.2,89.51911995]
[1738856975590,3.831e-05,192.22,192.21,14.91380853]
[1738856975908,3.831e-05,192.22,192.21,52.49627453]
[1738856976479,3.831e-05,192.22,192.19,37.80265571]
[1738856976780,3.831e-05,192.22,192.2,0.12549]
[1738856976971,3.831e-05,192.22,192.18,37.80265571]
[1738856977170,3.831e-05,192.22,192.15,38.58288781]
[1738856977368,3.831e-05,192.22,192.14,49.86726736]
[1738856977369,37.80269402,192.22,192.14,49.86726736]
[1738856977593,37.80265571,192.19,192.12,37.80265571]
[1738856977785,37.80265571,192.18,192.11,37.80265571]
[1738856977983,3.831e-05,192.22,192.09,0.78052537]
[1738856977984,37.80265571,192.16,192.09,37.80265571]
[1738856978183,37.80265571,192.13,192.06,37.80265571]
[1738856978385,37.80265571,192.15,192.08,38.17912571]
[1738856978706,3.831e-05,192.22,192.12,37.80265571]
[1738856978895,3.831e-05,192.22,192.04,5.2072]
[1738856979077,37.80265571,192.14,192.06,37.80265571]
[1738856979411,1.0,192.21,192.05,0.78063947]
[1738856979412,37.80265571,192.12,192.05,38.58336764]
[1738856979598,37.80265571,192.12,192.04,43.00985571]
[1738856979800,37.80265571,192.11,192.04,37.80265571]
[1738856979981,37.80265571,192.09,192.01,38.583495]
[1738856980179,37.80265571,192.12,192.04,37.80265571]
[1738856980511,1.0,192.16,192.0,49.07095571]
[1738856980683,37.80265571,192.08,192.01,37.80265571]
[1738856980880,20.0,192.12,192.0,6.06]
[1738856981103,37.80265571,192.03,191.95,37.80265571]
[1738856981602,37.80265571,192.04,191.97,38.05363571]
[1738856981789,37.80265571,192.01,191.94,37.80265571]
[1738856982100,37.80265571,192.01,191.93,37.80265571]
[1738856982305,37.80265571,192.0,191.93,37.80265571]
[1738856982503,37.80265571,192.0,191.92,38.58387457]
[1738856982705,37.80265571,191.96,191.89,37.80265571]
[1738856982889,37.11622341,191.93,191.85,37.80265571]
[1738856983076,18.2301,191.99,191.84,11.2126]
[1738856983292,5.2086,191.99,191.9,0.12549]
[1738856983927,5.2086,191.99,191.85,0.7813176]
[1738856984235,5.2086,191.99,191.87,20.0]
[1738856984431,18.2271,192.02,191.87,25.99314797]
[1738856984720,37.80265571,191.96,191.89,37.80265571]
[1738856984894,37.80265571,191.95,191.88,37.80265571]
[1738856985240,37.80265571,191.94,191.86,37.80265571]
[1738856985599,37.80265571,191.97,191.91,0.12549]
[1738856985828,56.0213,192.15,191.96,37.80265571]
[1738856985829,1.0,192.09,191.96,37.80265571]
[1738856986000,37.80265571,192.04,191.96,37.80265571]
[1738856986508,37.80265571,192.03,191.96,37.80265571]
[1738856986706,37.80265571,192.05,191.97,37.92814571]
[1738856986928,43.00925571,192.07,192.0,37.80265571]
[1738856987097,37.80265571,192.07,191.99,37.80265571]
[1738856987298,37.80265571,192.08,192.02,0.12549]
[1738856987516,37.80265571,192.08,192.0,37.80265571]
[1738856987720,37.80265571,192.09,192.02,37.80265571]
[1738856987924,37.80265571,192.08,192.02,0.12549]
[1738856988431,37.80265571,192.09,192.02,43.13574571]
[1738856988605,37.80265571,192.13,192.05,37.80265571]
[1738856988804,37.80265571,192.09,192.02,43.01025571]
[1738856989205,37.80265571,192.11,192.04,37.80265571]
[1738856989424,37.80265571,192.12,192.05,0.12549]
[1738856989720,37.80265571,192.09,192.02,43.01025571]
[1738856989912,37.80265571,192.09,192.01,37.80265571]
[1738856990114,37.80265571,192.1,192.02,43.01035571]
[1738856990315,37.80265571,192.11,192.04,37.80265571]
[1738856990626,37.80265571,192.11,192.03,38.58354167]
[1738856990837,37.80265571,192.09,192.01,37.80265571]
[1738856991051,37.80265571,192.08,192.0,37.80265571]
[1738856991248,37.80265571,192.05,191.98,43.01125571]
[1738856991542,18.2126,192.18,192.05,0.12549]
[1738856991712,37.80265571,192.15,192.08,37.80265571]
[1738856991916,0.09551872,192.09,192.08,37.92814571]
[1738856992126,0.09551872,192.09,192.08,39.08527878]
[1738856992631,0.09551872,192.09,192.08,57.70322731]
[1738856993337,0.09411181,192.1,192.08,43.78941878]
[1738856993635,0.09411181,192.1,192.09,43.68265571]
[1738856993834,0.09411181,192.1,192.09,57.59646424]
[1738856994418,8.813e-05,192.11,192.1,13.91380853]
[1738856994626,3.027e-05,192.12,192.1,95.50505048]
[1738856994815,8.634e-05,192.13,192.12,13.91380853]
[1738856995013,8.634e-05,192.13,192.12,52.49672768]
[1738856995527,8.634e-05,192.13,192.08,43.78892076]
[1738856995809,8.634e-05,192.13,192.12,51.71646424]
[1738856996744,8.634e-05,192.13,192.12,56.92146424]
[1738856996911,8.634e-05,192.13,192.12,57.70177165]
[1738856997708,8.634e-05,192.13,192.12,0.12549]
[1738856997908,8.634e-05,192.13,192.08,37.80265571]
[1738856998142,37.80274205,192.13,192.05,43.00935571]
[1738856998352,37.80265571,192.11,192.03,5.2074]
[1738856998532,8.634e-05,192.13,192.01,5.98862147]
[1738856998733,8.634e-05,192.13,192.01,37.80265571]
[1738856998947,37.80265571,192.07,191.99,48.85095571]
[1738856999151,37.80265571,192.06,191.99,48.85095571]
[1738856999452,37.80265571,192.08,192.01,13.91380853]
[1738856999662,37.80265571,192.1,192.03,38.05363571]
[1738856999847,37.80265571,192.11,192.05,0.25098]
[1738857000043,37.80265571,192.1,192.05,0.25098]
[1738857000252,37.80265571,192.08,192.01,37.80265571]
[1738857000455,37.80265571,192.06,191.99,11.0485]
[1738857000638,1.00008634,192.13,191.99,11.0485]
[1738857000639,8.634e-05,192.13,192.02,0.50196]
[1738857000958,8.634e-05,192.13,192.1,0.25098]
[1738857001159,8.634e-05,192.13,192.11,0.25098]
[1738857001337,8.634e-05,192.13,192.12,14.69425253]
[1738857001741,8.634e-05,192.13,192.12,52.49690824]
[1738857002149,2.86e-05,192.14,192.13,13.91380853]
[1738857002326,2.86e-05,192.14,192.13,57.51646424]